bitfinex/quotes_ETHUSD_20241122
["timestamp","ask_amount","ask_price","bid_price","bid_amount"]
[1732282064136,5.89731144,3270.7,3266.7,0.7858]
[1732282064373,0.87580157,3270.1,3266.8,0.04060556]
[1732282064522,0.39450299,3270.0,3266.7,0.7858]
[1732282064726,8.96649144,3268.9,3265.7,0.7858]
[1732282064929,0.01,3267.6,3264.8,0.7858]
[1732282065176,1.23249609,3268.8,3264.4,0.09443661]
[1732282065177,0.01,3266.2,3264.4,0.09443661]
[1732282065354,5.89731144,3265.7,3264.4,0.09443661]
[1732282065532,0.64772301,3265.6,3264.4,0.09443661]
[1732282065864,8.96009144,3265.1,3264.4,0.09443661]
[1732282066069,0.76453426,3265.0,3264.4,0.09443661]
[1732282066264,1.09004864,3265.0,3264.4,0.09443661]
[1732282066468,0.1301443,3265.0,3264.4,0.09443661]
[1732282066651,0.01,3267.3,3264.4,0.09443661]
[1732282066852,9.74350144,3267.6,3265.6,0.01]
[1732282066853,0.7858,3267.6,3265.6,0.01]
[1732282067160,0.7858,3267.6,3264.5,0.01]
[1732282067161,0.01,3270.3,3266.0,0.02]
[1732282067387,3.05832,3269.8,3266.3,0.01]
[1732282067525,0.01,3269.6,3266.2,0.01]
[1732282067730,0.8965019,3269.6,3266.2,0.55]
[1732282067930,0.01,3269.4,3266.2,0.55]
[1732282068181,0.8865019,3269.5,3264.8,0.01]
[1732282068182,0.01,3268.0,3264.8,0.01]
[1732282068346,5.89731144,3268.1,3264.7,0.8332]
[1732282068347,0.01,3267.8,3264.7,0.8332]
[1732282068559,1.23748887,3267.7,3264.8,0.01]
[1732282068771,1.23748887,3267.7,3265.0,0.01]
[1732282068772,0.4038229,3267.7,3265.0,0.01]
[1732282069073,0.42215623,3267.8,3265.8,0.01]
[1732282069232,3.05897,3269.1,3264.7,0.8332]
[1732282069233,0.502679,3268.1,3265.7,0.01]
[1732282069431,0.31956197,3268.8,3266.5,0.01]
[1732282069432,0.30918697,3268.8,3266.5,0.01]
[1732282069666,0.01,3269.5,3265.0,0.01]
[1732282069667,0.40032693,3269.1,3266.8,0.01]
[1732282069931,0.40032693,3269.1,3266.9,0.01]
[1732282070131,0.40032693,3269.1,3266.7,0.55]
[1732282070441,3.05914,3268.9,3266.7,0.43486]
[1732282070630,0.93800593,3268.8,3266.0,0.01]
[1732282070831,0.40032693,3268.8,3266.7,0.01]
[1732282071026,0.527679,3268.7,3266.2,0.01]
[1732282071263,0.40032693,3268.6,3267.3,0.01]
[1732282071431,0.40032693,3268.6,3266.2,3.0]
[1732282071432,0.25,3268.9,3266.3,0.01]
[1732282071636,0.25,3268.9,3266.0,0.01]
[1732282071871,0.84589677,3268.8,3267.1,0.01]
[1732282072043,0.25,3268.9,3266.9,0.01]
[1732282072242,0.25,3268.9,3263.5,15.7876704]
[1732282072243,5.89731144,3267.2,3261.9,0.01]
[1732282072444,3.06522,3262.4,3260.2,0.3183066]
[1732282072647,1.10436673,3262.4,3262.0,0.68745196]
[1732282072851,1.07939919,3262.3,3262.0,0.68745196]
[1732282073048,3.0655,3262.1,3262.0,0.68745196]
[1732282073363,3.0655,3262.1,3259.5,10.197883]
[1732282073364,0.01,3261.0,3259.5,10.197883]
[1732282073549,3.70542,3262.2,3259.5,10.197883]
[1732282073550,0.245,3260.8,3259.5,10.197883]
[1732282073761,0.03142096,3260.7,3260.0,0.446535]
[1732282074137,0.03142096,3261.9,3260.0,0.07035]
[1732282074740,3.06646,3261.1,3260.0,0.07035]
[1732282074975,0.03142096,3261.0,3260.0,0.07035]
[1732282075171,0.01,3262.1,3260.0,0.07035]
[1732282075172,2.88905,3262.2,3260.0,0.07035]
[1732282075374,3.06613,3261.5,3260.0,0.07035]
[1732282075572,3.06494,3262.7,3260.0,0.07035]
[1732282075573,0.01,3262.1,3260.0,0.07035]
[1732282075798,8.96451144,3260.4,3260.0,0.07035]
[1732282076086,3.06757,3259.9,3259.5,10.197883]
[1732282076503,3.06757,3259.9,3259.8,2.5127]
[1732282076790,3.0672,3260.3,3259.8,1.76839116]
[1732282076988,5.89731144,3260.4,3259.8,0.17580933]
[1732282077160,5.89731144,3262.2,3259.8,0.17580933]
[1732282077491,3.07393,3263.8,3259.8,0.17580933]
[1732282077492,5.89731144,3262.8,3260.1,0.7757]
[1732282077701,5.89731144,3262.2,3260.5,0.01]
[1732282077990,4.23,3262.9,3261.7,0.01]
[1732282078149,5.89731144,3262.6,3261.1,0.01]
[1732282078345,5.89731144,3263.2,3261.1,0.55]
[1732282078551,5.89731144,3263.2,3261.3,0.01]
[1732282078747,5.89731144,3264.5,3262.2,0.01]
[1732282078964,5.89731144,3263.0,3261.0,0.01]
[1732282079179,0.33729688,3262.9,3259.6,3.2234119]
[1732282079374,5.89731144,3262.2,3260.1,0.01]
[1732282079574,6.20174544,3262.9,3260.7,0.01]
[1732282079801,10.0,3264.1,3259.6,3.2234119]
[1732282079802,5.89731144,3263.6,3261.9,0.01]
[1732282079958,5.89731144,3263.6,3261.2,0.01]
[1732282080160,5.89731144,3263.6,3261.3,0.01]
[1732282080682,5.89731144,3263.6,3261.5,0.01]
[1732282081004,5.89731144,3264.3,3262.4,0.01]
[1732282081328,8.06034,3267.7,3263.6,0.01]
[1732282081329,0.39106949,3265.3,3263.6,0.01]
[1732282081611,5.89731144,3265.7,3263.3,3.0]
[1732282081792,5.89731144,3265.7,3262.7,0.7644]
[1732282081793,5.89731144,3265.7,3263.8,0.01]
[1732282081992,6.21757877,3266.5,3264.5,0.01]
[1732282082312,5.89731144,3266.5,3264.5,0.01]
[1732282082801,5.89731144,3266.5,3264.8,0.01]
[1732282082974,5.89731144,3267.8,3265.3,0.01]
[1732282083181,5.89731144,3267.8,3265.8,0.01]
[1732282083372,5.89731144,3267.8,3266.2,0.01]
[1732282083705,0.37541532,3268.4,3266.2,0.01]
[1732282083905,6.38001751,3268.5,3266.8,0.01]
[1732282084106,6.38001751,3268.5,3263.8,0.01]
[1732282084107,0.758,3266.5,3264.2,0.01]
[1732282084405,5.89731144,3265.5,3262.1,0.01]
[1732282084606,2.02630625,3266.4,3262.2,0.01]
[1732282084607,8.95893144,3266.3,3262.2,0.01]
[1732282084829,0.758,3266.5,3262.6,0.01]
[1732282084964,0.758,3266.5,3260.5,0.03064833]
[1732282084965,0.758,3266.5,3263.1,0.01]
[1732282085168,0.758,3266.5,3261.0,0.122385]
[1732282085169,0.31857213,3267.4,3263.8,0.01]
[1732282085397,0.758,3267.5,3264.2,0.02]
[1732282085604,0.758,3267.5,3264.2,0.01]
[1732282085802,0.758,3268.3,3264.7,0.01]
[1732282086017,0.758,3268.3,3264.0,0.01]
[1732282086018,0.758,3268.3,3264.3,0.01]
[1732282086306,0.758,3268.3,3264.3,0.55]
[1732282086307,3.06042,3267.6,3264.3,0.55]
[1732282086513,0.71485272,3268.2,3264.3,0.55]
[1732282086514,3.06023,3267.8,3264.4,0.01]
[1732282086696,3.05992,3268.1,3264.4,0.01]
[1732282086697,0.41555941,3267.7,3265.1,0.55]
[1732282086882,6.31287085,3267.7,3265.1,0.55]
[1732282087089,0.41555941,3267.6,3265.1,0.7781]
[1732282087289,5.89731144,3267.0,3265.1,0.7781]
[1732282087475,0.36622542,3267.5,3265.2,0.55]
[1732282087686,0.36622542,3267.5,3265.1,0.7781]
[1732282087687,0.41555941,3267.5,3265.1,0.7781]
[1732282087889,5.89731144,3267.0,3265.1,0.7781]
[1732282088089,3.06142,3266.5,3265.1,0.7781]
[1732282088286,3.0612,3266.7,3265.1,0.7781]
[1732282088513,5.89731144,3266.3,3263.9,0.7781]
[1732282088793,3.06308,3264.7,3263.1,0.7781]
[1732282088987,3.0,3265.5,3263.1,0.7781]
[1732282088988,3.06298,3264.8,3263.1,0.7781]
[1732282089228,0.36622542,3264.7,3263.1,0.7781]
[1732282089397,5.89731144,3264.9,3263.1,0.7781]
[1732282089607,3.0624,3265.5,3263.1,0.7781]
[1732282090001,3.0621,3265.8,3263.1,0.7781]
[1732282090229,3.758,3266.2,3263.1,0.7781]
[1732282090230,3.06313,3264.7,3263.1,0.7781]
[1732282090546,3.0,3265.9,3263.1,0.7781]
[1732282090690,3.06138,3266.5,3263.2,0.03064225]
[1732282090893,3.06089,3267.1,3263.5,0.8109]
[1732282091139,9.387328,3267.7,3264.0,0.8109]
[1732282091140,0.42404461,3267.6,3264.0,0.8109]
[1732282091292,3.06063,3267.3,3264.2,0.8109]
[1732282091492,3.06138,3266.5,3264.4,0.55]
[1732282091699,5.89731144,3266.7,3264.3,0.55]
[1732282091930,3.47422858,3267.2,3264.2,0.8109]
[1732282091931,5.89731144,3267.4,3264.8,3.0]
[1732282092139,5.89731144,3267.4,3265.1,0.55]
[1732282092293,3.06139,3266.5,3265.0,0.8109]
[1732282092652,5.89731144,3266.7,3265.0,0.8109]
[1732282092807,3.06082,3267.1,3265.0,0.8109]
[1732282092991,5.89731144,3267.4,3265.0,0.8109]
[1732282093187,3.06071,3267.3,3265.1,0.55]
[1732282093428,0.41265941,3268.0,3265.0,0.8109]
[1732282093627,5.89731144,3267.4,3265.1,0.55]
[1732282093802,5.89731144,3267.4,3265.1,0.52163206]
[1732282094029,6.30997085,3267.4,3265.1,0.95488527]
[1732282094357,6.30997085,3267.4,3265.1,0.52163206]
[1732282094657,3.06064,3267.3,3265.1,0.52163206]
[1732282094854,3.05997,3268.0,3265.1,0.52163206]
[1732282094855,0.43015941,3267.4,3265.1,0.52163206]
[1732282095021,5.89731144,3267.5,3265.1,0.52163206]
[1732282095022,0.43015941,3267.2,3265.1,0.52163206]
[1732282095216,5.89731144,3267.5,3265.1,0.52163206]
[1732282095551,6.1221,3266.9,3265.0,0.8109]
[1732282095765,3.06101,3266.9,3265.0,0.8109]
[1732282096057,3.06074,3267.2,3265.0,0.8109]
[1732282096214,5.89731144,3267.5,3265.0,0.8109]
[1732282096556,3.06125,3266.7,3265.0,0.8109]
[1732282096915,3.06072,3267.3,3265.0,0.8109]
[1732282096916,3.06099,3267.0,3265.0,0.8109]
[1732282097232,8.89731144,3267.5,3265.0,0.8109]
[1732282097233,3.06072,3267.2,3265.0,0.8109]
[1732282097431,8.89731144,3267.5,3265.0,0.8109]
[1732282097432,3.0614,3266.5,3265.0,0.8109]
[1732282097615,3.06128,3266.7,3265.0,0.8109]
[1732282097816,3.06118,3266.8,3265.0,0.8109]
[1732282098013,11.95783144,3267.5,3265.0,0.8109]
[1732282098014,0.41595868,3267.2,3265.0,0.8109]
[1732282098218,5.89731144,3267.5,3265.0,0.8109]
[1732282098417,3.0613,3266.6,3265.0,0.8109]
[1732282098653,3.26582404,3267.4,3265.0,0.8109]
[1732282098654,3.06095,3267.0,3265.1,0.55]
[1732282098855,3.06176,3266.1,3265.0,0.8109]
[1732282099018,5.89731144,3266.8,3265.0,0.8109]
[1732282099219,5.89731144,3267.5,3265.1,0.55]
[1732282099627,3.06077,3267.2,3265.1,0.55]
[1732282099858,3.06099,3267.0,3265.1,0.55]
[1732282100059,0.41595868,3267.9,3265.3,0.55]
[1732282100372,3.06095,3267.0,3265.5,0.55]
[1732282100533,3.06063,3267.3,3265.5,0.5]
[1732282101056,5.89731144,3267.4,3265.4,0.7163]
[1732282101585,3.06101,3266.9,3265.4,0.7163]
[1732282101791,3.06101,3266.9,3262.2,0.03062372]
[1732282101792,3.05996,3268.1,3265.5,0.03062446]
[1732282101989,3.05986,3268.2,3265.2,0.01]
[1732282102192,5.89731144,3268.8,3265.1,0.01]
[1732282102193,3.05932,3268.7,3265.1,0.01]
[1732282102353,3.06011,3267.9,3265.7,3.0]
[1732282102554,3.05988,3268.1,3265.9,0.55]
[1732282102749,3.0597,3268.3,3265.9,0.55]
[1732282103055,3.05941,3268.6,3265.9,0.55]
[1732282103249,3.06009,3267.9,3265.9,0.935]
[1732282103463,5.89731144,3268.8,3265.8,0.55]
[1732282103464,5.89731144,3268.1,3265.8,0.55]
[1732282103668,5.89731144,3267.5,3264.1,0.03062107]
[1732282103867,3.06234,3265.5,3263.3,0.03062915]
[1732282104189,5.89731144,3265.1,3263.4,0.7699]
[1732282104378,3.0,3264.3,3263.2,0.005]
[1732282104685,0.42369868,3265.5,3259.8,0.18580933]
[1732282104686,3.06533,3262.3,3261.5,0.7699]
[1732282104885,3.06541,3262.3,3261.5,0.7699]
[1732282105092,3.06542,3262.2,3261.5,0.7699]
[1732282105387,6.34134684,3263.9,3261.5,0.7699]
[1732282105687,0.7842,3264.8,3261.5,0.7699]
[1732282105688,8.96169144,3263.3,3261.5,0.7699]
[1732282105904,5.89731144,3263.3,3261.5,0.7699]
[1732282106188,0.26656716,3263.2,3261.5,0.7699]
[1732282106498,0.4440354,3264.4,3261.7,0.7856]
[1732282106786,3.0,3265.0,3262.6,0.7856]
[1732282106787,0.26722563,3264.3,3262.6,0.7856]
[1732282107001,0.61889937,3265.6,3262.9,0.01]
[1732282107155,5.89731144,3266.3,3259.8,0.17580933]
[1732282107156,0.44555195,3266.3,3263.3,0.01]
[1732282107353,0.01,3264.9,3259.8,0.17580933]
[1732282107549,0.01,3264.9,3258.5,3.76795128]
[1732282107550,0.7647,3261.3,3259.4,0.75615925]
[1732282107798,0.0306312,3261.2,3259.4,0.75615925]
[1732282108151,5.89731144,3260.7,3259.4,0.75615925]
[1732282108347,0.66518606,3260.6,3259.5,10.1634242]
[1732282108800,3.07786,3259.6,3259.5,10.1559242]
[1732282108969,4.12045287,3259.6,3259.5,9.59055271]
[1732282109194,3.06912,3258.3,3255.3,1.225505]
[1732282109523,0.0306312,3258.2,3255.4,0.03071066]
[1732282109693,0.0306312,3258.2,3255.4,0.01]
[1732282109892,0.0306312,3259.4,3257.3,0.8035]
[1732282110110,0.01,3259.3,3257.3,0.8035]
[1732282110284,0.0306312,3259.2,3257.3,0.8035]
[1732282110483,0.0306312,3259.2,3257.3,0.0035]
[1732282110484,0.01,3258.8,3257.3,0.0035]
[1732282110684,0.0306312,3258.7,3257.3,0.0035]
[1732282110883,0.7825,3258.6,3254.9,0.03070573]
[1732282111139,0.0306312,3258.5,3254.9,0.04070573]
[1732282111299,0.0306312,3258.5,3255.0,0.01]
[1732282111498,0.0306312,3258.5,3255.3,0.01]
[1732282111698,0.0306312,3258.5,3255.6,0.01]
[1732282111891,0.0306312,3259.3,3255.9,0.01]
[1732282112097,0.0306312,3259.3,3255.9,0.03070035]
[1732282112653,0.0306312,3259.3,3257.7,0.55]
[1732282112785,0.0306312,3260.9,3259.2,3.0]
[1732282112986,0.0306312,3260.9,3255.9,1.56527682]
[1732282112987,0.0306312,3262.4,3260.3,3.0]
[1732282113192,0.0306312,3262.4,3259.8,0.55]
[1732282113193,0.0306312,3262.4,3260.5,0.55]
[1732282113496,0.0306312,3262.4,3259.3,0.31]
[1732282113497,0.0306312,3262.4,3259.4,0.7623]
[1732282113707,0.0306312,3263.1,3261.2,1.3123]
[1732282114027,0.0306312,3263.1,3261.7,3.7623]
[1732282114183,0.0406312,3264.3,3261.8,0.98123]
[1732282114383,0.0306312,3264.3,3261.8,0.55]
[1732282114604,3.06409,3263.7,3261.7,0.7623]
[1732282114923,0.0306312,3263.6,3261.8,0.55]
[1732282115245,0.0306312,3263.6,3261.7,0.7623]
[1732282115441,0.0306312,3263.6,3262.0,0.55]
[1732282115721,0.0306312,3264.8,3262.5,0.55]
[1732282116021,0.0306312,3264.8,3263.4,3.0]
[1732282116220,0.0306312,3265.6,3263.5,0.55]
[1732282116420,0.0306312,3265.6,3263.6,0.7968]
[1732282116630,0.0306312,3265.6,3263.7,0.55]
[1732282117127,0.0306312,3265.9,3263.7,0.55]
[1732282117345,0.0306312,3265.9,3263.6,0.7968]
[1732282117346,3.06232,3265.5,3263.6,0.7968]
[1732282117523,0.01,3265.0,3263.6,0.7968]
[1732282117692,0.0306312,3264.9,3263.6,0.7968]
[1732282118748,0.0306312,3265.6,3263.7,0.55]
[1732282119103,0.0406312,3265.6,3263.6,0.7968]
[1732282119311,0.0306312,3265.6,3263.7,0.58064026]
[1732282119529,0.0306312,3266.0,3263.9,0.55]
[1732282119731,3.07241,3265.4,3259.4,27.90941959]
[1732282120050,0.01,3264.2,3260.4,0.01533803]
[1732282120249,0.03831619,3264.1,3259.5,2.83630885]
[1732282120435,0.03831619,3264.1,3259.6,0.28363089]
[1732282120644,0.01,3263.4,3259.7,0.01536806]
[1732282120818,4.98549721,3264.0,3259.7,0.01536806]
[1732282120819,3.06398,3263.8,3259.7,0.01536806]
[1732282121020,3.06444,3263.3,3259.7,0.32736215]
[1732282121316,0.03832592,3263.2,3259.7,0.32736215]
[1732282121533,0.0383233,3263.8,3259.7,0.32736215]
[1732282122403,0.03830959,3264.5,3259.7,0.32736215]
[1732282122606,4.98549721,3263.9,3259.8,0.3610993]
[1732282122826,0.03830959,3264.5,3260.0,0.8137]
[1732282122827,0.03831947,3263.8,3260.0,0.8137]
[1732282123032,4.98549721,3264.5,3260.2,0.8137]
[1732282123033,0.01,3264.3,3260.2,0.8137]
[1732282123205,0.03831618,3264.2,3260.3,0.82906687]
[1732282123608,0.03830796,3264.9,3260.3,0.82906687]
[1732282123803,4.98549721,3263.3,3260.4,0.8164]
[1732282124032,0.03832472,3263.2,3260.5,0.83178396]
[1732282125058,0.03832293,3265.2,3260.5,0.83178396]
[1732282125620,0.03829582,3265.8,3260.7,1.57841478]
[1732282125826,0.03829582,3265.8,3260.0,0.0283706]
[1732282125827,0.03829582,3265.8,3263.6,3.0]
[1732282126030,0.03829582,3265.8,3263.9,0.55]
[1732282126323,0.03828693,3266.5,3264.2,0.7567]
[1732282126528,0.03828204,3267.2,3264.6,0.7567]
[1732282126756,0.03828204,3267.2,3264.9,0.55]
[1732282126952,0.03828204,3267.2,3265.0,0.55]
[1732282127162,4.98549721,3266.9,3265.1,0.7839]
[1732282127372,0.01,3266.1,3265.1,0.7839]
[1732282127534,0.03828996,3266.1,3265.1,0.7839]
[1732282127735,0.03828996,3266.1,3264.2,0.8043]
[1732282127955,0.03828996,3266.1,3264.6,3.0]
[1732282128126,0.03828272,3266.8,3264.8,1.3543]
[1732282128330,0.03828272,3266.8,3265.1,3.0]
[1732282128545,0.03828272,3266.8,3265.2,0.55]
[1732282128864,0.03828272,3266.8,3264.8,0.8043]
[1732282128865,0.01,3266.6,3264.8,0.8043]
[1732282129068,0.03828691,3266.6,3264.8,0.8043]
[1732282129673,0.03828691,3266.6,3264.9,0.55]
[1732282129962,0.01,3267.2,3264.9,0.55]
[1732282129963,0.03827638,3267.2,3264.9,0.55]
[1732282130364,0.02,3266.8,3264.8,0.8043]
[1732282130549,0.04828686,3266.7,3264.8,0.8043]
[1732282131062,0.03828686,3266.7,3264.8,0.8043]
[1732282131263,0.01,3267.4,3264.8,0.8043]
[1732282131264,0.03827418,3267.1,3264.8,0.8043]
[1732282131933,0.01,3267.0,3264.9,0.55]
[1732282132083,0.03828113,3266.9,3264.8,0.8043]
[1732282132424,0.01,3266.1,3264.8,0.8043]
[1732282132607,0.01,3266.2,3264.8,0.8043]
[1732282133010,0.01,3265.7,3264.8,0.8043]
[1732282133196,0.03829272,3265.7,3262.9,0.8043]
[1732282133395,0.03829272,3265.7,3263.1,0.8043]
[1732282133729,0.04829272,3265.7,3263.1,0.8043]
[1732282134025,0.01,3265.6,3263.2,0.01532424]
[1732282134194,0.03829505,3265.5,3263.3,0.8189]
[1732282134396,0.01,3265.1,3263.3,0.8189]
[1732282134621,0.03830151,3265.1,3263.3,0.8189]
[1732282135188,0.03830151,3265.1,3263.4,0.0153291]
[1732282135386,0.03830151,3265.1,3263.4,0.01532536]
[1732282135587,0.01,3265.4,3263.4,0.01532536]
[1732282135817,0.01,3265.3,3263.4,0.01532536]
[1732282136126,0.01,3265.3,3263.3,0.8189]
[1732282136127,0.03829543,3265.2,3263.3,0.8189]
[1732282136336,0.01,3265.0,3263.3,0.8189]
[1732282136491,0.03830152,3265.0,3263.3,0.8189]
[1732282136897,3.06333,3264.5,3263.3,0.8189]
[1732282137086,0.01,3264.1,3262.8,0.005]
[1732282137291,0.01,3263.8,3262.8,0.005]
[1732282137495,3.06449,3263.2,3262.8,0.005]
[1732282137733,0.03832307,3263.1,3262.8,0.005]
[1732282138500,0.03832307,3263.1,3261.5,0.8067]
[1732282138501,0.02,3262.9,3261.5,0.8067]
[1732282138720,0.01,3262.7,3261.5,0.8067]
[1732282138905,0.03832756,3262.6,3261.5,0.8067]
[1732282139306,0.03832354,3263.3,3261.5,0.8067]
[1732282139508,0.03832354,3263.3,3261.6,0.01537644]
[1732282139709,0.03832096,3263.9,3261.7,0.8067]
[1732282139929,0.01,3263.5,3261.7,0.8067]
[1732282140133,0.04831863,3263.5,3261.7,0.8067]
[1732282140432,0.01,3263.3,3261.7,0.8067]
[1732282140606,0.03831864,3263.3,3261.8,0.01537179]
[1732282140936,0.03831547,3263.8,3261.8,0.01537179]
[1732282141108,3.06228,3265.6,3260.0,0.0283706]
[1732282141109,0.03830561,3264.7,3261.9,0.7953]
[1732282141431,0.03830561,3264.7,3260.0,0.0283706]
[1732282141432,0.01,3263.9,3262.0,0.7953]
[1732282141748,0.01,3263.3,3262.0,0.7953]
[1732282141897,0.01,3262.9,3260.4,0.7953]
[1732282142099,0.01,3262.9,3260.0,0.0283706]
[1732282142100,0.04832262,3262.9,3260.6,0.7953]
[1732282142399,0.03832262,3262.9,3260.7,0.01538462]
[1732282142599,0.03832262,3262.9,3260.6,0.7953]
[1732282142600,0.01,3261.5,3260.6,0.7953]
[1732282142926,0.01,3261.5,3260.0,0.0283706]
[1732282142927,0.01,3260.4,3260.0,0.0283706]
[1732282143129,3.07739,3260.1,3260.0,0.0283706]
[1732282143339,0.01,3260.1,3260.0,0.0283706]
[1732282143645,0.03835991,3260.1,3260.0,0.0283706]
[1732282143851,0.01,3260.6,3260.0,0.0283706]
[1732282144147,0.03834884,3260.6,3260.0,0.0283706]
[1732282144355,0.03834366,3261.4,3260.0,0.0283706]
[1732282144517,0.03833768,3261.8,3260.1,0.8296]
[1732282144727,0.03832905,3262.9,3260.3,0.8296]
[1732282145013,0.04831975,3263.6,3260.4,0.84497402]
[1732282145219,0.01,3263.0,3261.5,0.8296]
[1732282145433,0.03832567,3263.0,3261.5,0.8296]
[1732282145614,0.02,3263.1,3261.5,0.8296]
[1732282145921,0.03832362,3264.3,3261.8,0.55]
[1732282146117,0.03832362,3264.3,3262.9,0.8296]
[1732282146118,0.04832362,3264.3,3262.9,0.8296]
[1732282146320,0.02,3264.0,3262.9,0.8296]
[1732282146541,0.01,3263.8,3262.9,0.8296]
[1732282146845,0.01,3263.6,3262.9,0.8296]
[1732282146998,0.02,3263.4,3262.9,0.8296]
[1732282147199,0.02,3263.4,3260.0,0.04372744]
[1732282147200,0.02,3263.2,3260.4,0.55]
[1732282147414,0.42832223,3264.4,3261.4,3.0]
[1732282147415,0.03832354,3263.1,3261.4,3.0]
[1732282147611,0.03831509,3264.0,3262.4,3.0]
[1732282147836,0.03831509,3264.0,3262.6,0.8296]
[1732282148150,0.03831509,3264.0,3260.1,0.30437274]
[1732282148151,0.01,3263.5,3260.3,0.8296]
[1732282148305,3.06342,3264.4,3261.8,0.55]
[1732282148306,0.03831353,3263.8,3261.8,0.55]
[1732282148637,0.01,3263.3,3261.8,0.43796]
[1732282148845,0.01,3263.7,3261.9,0.01537054]
[1732282149002,0.02,3263.5,3261.7,0.8296]
[1732282149199,0.01,3262.7,3261.7,0.8296]
[1732282149413,0.01,3262.6,3261.7,0.8296]
[1732282149644,0.01,3262.2,3260.1,0.8296]
[1732282149813,1.224546,3262.7,3260.2,0.01539204]
[1732282149998,0.02,3262.2,3260.2,0.01539204]
[1732282150202,0.01,3261.9,3260.2,0.01539204]
[1732282150464,0.01,3261.7,3260.1,0.8296]
[1732282150660,0.04833854,3261.7,3260.1,0.8296]
[1732282150828,0.04833854,3261.7,3260.2,0.01540385]
[1732282151138,0.03833294,3262.4,3260.2,0.0154004]
[1732282151300,0.03832545,3262.3,3260.2,0.0154004]
[1732282151504,0.01,3261.7,3260.1,0.8296]
[1732282151748,0.01,3261.7,3260.2,0.01540506]
[1732282151749,0.03833527,3261.7,3260.2,0.01540506]
[1732282151916,0.01,3261.7,3260.2,0.01539405]
[1732282152249,0.01,3261.7,3260.0,0.0283706]
[1732282152250,0.01,3260.6,3260.0,0.0283706]
[1732282152546,0.01,3260.1,3260.0,0.0283706]
[1732282152848,3.12574736,3260.1,3260.0,0.0283706]
[1732282153009,0.05835736,3260.1,3260.0,0.0283706]
[1732282153206,0.03835736,3260.1,3260.0,0.0283706]
[1732282153514,3.05835736,3260.1,3260.0,0.0283706]
[1732282153819,3.05835736,3260.1,3257.2,0.02219542]
[1732282153820,0.01,3258.8,3257.2,0.0067629]
[1732282154008,0.7759,3258.7,3257.2,0.0067629]
[1732282154234,0.02,3258.1,3257.2,0.0067629]
[1732282154433,0.01,3257.9,3257.2,0.0067629]
[1732282154627,0.05838432,3257.8,3256.2,0.1289198]
[1732282154876,0.01,3257.6,3256.2,0.1289198]
[1732282155054,0.04838432,3257.8,3256.3,0.8164]
[1732282155055,0.03838432,3257.8,3256.3,0.8164]
[1732282155367,0.03838432,3257.8,3256.2,0.1289198]
[1732282155368,0.01,3257.2,3256.2,0.0789198]
[1732282155569,0.01,3256.9,3256.2,0.0789198]
[1732282155776,0.03839504,3256.9,3256.2,0.0789198]
[1732282155932,0.03839163,3257.7,3256.2,0.0789198]
[1732282156288,0.03838388,3258.6,3256.2,0.0789198]
[1732282156766,0.01,3258.2,3256.2,0.0789198]
[1732282156976,0.01,3257.7,3256.2,0.0789198]
[1732282157287,0.03838433,3257.7,3256.2,0.0789198]
[1732282157430,0.01,3257.0,3256.2,0.0789198]
[1732282157630,0.04839354,3257.0,3256.2,0.0789198]
[1732282157835,0.03839354,3257.0,3256.2,0.0789198]
[1732282158067,0.01,3257.4,3256.2,0.0789198]
[1732282158068,0.03839242,3257.4,3256.2,0.0789198]
[1732282158272,0.01,3258.0,3256.2,0.0789198]
[1732282158273,0.01,3257.1,3256.2,0.0789198]
[1732282158432,0.01,3257.6,3256.2,0.0789198]
[1732282158635,0.01,3257.3,3256.2,0.0789198]
[1732282158866,0.0383891,3257.3,3256.2,0.0789198]
[1732282159046,0.03838309,3257.7,3256.2,0.3387198]
[1732282159246,0.01,3257.6,3253.3,0.12267]
[1732282159488,0.03838309,3257.7,3253.4,2.99141464]
[1732282159489,0.01,3256.1,3253.4,2.99141464]
[1732282159776,0.03840167,3256.5,3253.4,2.99141464]
[1732282159932,0.01,3257.1,3253.4,2.99141464]
[1732282159933,0.03836082,3257.1,3253.5,5.2611207]
[1732282160131,0.04839034,3257.4,3253.5,5.2611207]
[1732282160368,3.06852,3258.9,3253.5,5.2611207]
[1732282160369,0.0483873,3257.7,3253.6,0.82525353]
[1732282160573,0.0383873,3257.4,3254.3,3.0]
[1732282160777,0.01,3258.4,3254.5,0.55]
[1732282160778,0.01,3257.7,3254.5,0.55]
[1732282160931,0.02,3257.7,3254.5,0.55]
[1732282161383,0.01,3257.1,3254.5,0.55]
[1732282161565,0.01,3257.1,3253.6,0.82525353]
[1732282161566,0.01,3256.7,3253.6,0.82525353]
[1732282161876,0.03840211,3256.7,3253.7,0.98570742]
[1732282162244,0.03840211,3256.7,3253.8,0.7811]
[1732282162443,0.04839182,3257.4,3254.0,0.7811]
[1732282162643,0.01,3257.2,3254.0,0.7811]
[1732282162865,0.04838807,3257.2,3254.0,0.7811]
[1732282163041,0.01,3256.8,3254.0,0.7811]
[1732282163242,0.04839641,3256.8,3254.0,0.7811]
[1732282163479,0.04839546,3257.4,3254.0,0.7811]
[1732282163831,0.03839546,3257.4,3254.0,0.7811]
[1732282164035,0.03839546,3257.4,3254.1,4.96711808]
[1732282164230,0.8219,3258.1,3254.3,0.7833]
[1732282164472,0.86027597,3258.1,3255.1,0.766]
[1732282164677,0.86027597,3258.1,3255.2,1.6926]
[1732282164908,0.8219,3258.1,3255.2,1.6926]
[1732282165033,0.80687301,3258.9,3255.6,0.7521]
[1732282165238,0.7968682,3259.6,3256.0,0.8033]
[1732282165452,0.03835941,3259.5,3256.4,0.55]
[1732282165769,0.7968565,3259.6,3256.6,0.55]